Cogmind - Beta 11 @@@ ROGUE MODE // 2022.04.17 @ 20:25:14 Player: deepledi Result: Core destroyed Performance ------------- Evolutions (7) 3500 Regions Visited (22) 4400 Robots Destroyed (315) 1575 Value Destroyed (13868) 13868 Prototype IDs (67) 1340 Alien Tech Used (0) 0 Bonus (7124) 7124 TOTAL SCORE: 31807 Bonus ------- Triggered High Security 500 High Alert Combat Kills 1618 Follower Combat Kills 4283 Aligned with FarCom 300 Met Data Miner 300 Met Warlord at Base 500 MAIN.C Attacked Warlord 500 Warlord Defense Kill 132 Built Enhanced Grunts 300 Friendly Fire -1309 Cogmind --------- Core Integrity 0/1300 Matter 132/300 Energy 515/520 System Corruption 37% Temperature Critical (739) Movement Treading (228) Ox1 Location -3/Research Parts ------- > --- POWER (3) -------- Particle Reactor Light Quantum Reactor Light Quantum Reactor > --- PROPULSION (6) --- Enhanced Armored Medium Treads Biometal Medium Treads Biometal Medium Treads Biometal Medium Treads Biometal Medium Treads Biometal Medium Treads > --- UTILITY (10) ----- Huge Storage Unit Improved System Guard Wardrone Bay (1/1) > --- WEAPON (2) ------- Long-range Phase Cannon Railgun > --- INVENTORY (25) --- Light Antimatter Reactor Light Antimatter Reactor Advanced Heat Sink Advanced Heat Sink Hardened Heavy Armor Plating Hardened Heavy Armor Plating Force Field Long-range Tractor Beam Dimensional Node Initializer Gamma Rifle Mini Smartbomb Launcher Thermoblaster Micro-nuke Launcher Micro-nuke Launcher Field Lobotomy Kit (2) Power Maul Peak State ------------ > --- POWER ------------ Compact Particle Reactor Quantum Reactor > --- PROPULSION ------- Enhanced Armored Heavy Treads Enhanced Armored Heavy Treads Enhanced Armored Heavy Treads > --- UTILITY ---------- Huge Storage Unit Wardrone Bay > --- WEAPON ----------- Heavy Mass Driver > --- INVENTORY -------- Enhanced Armored Heavy Treads Enhanced Armored Heavy Treads Advanced Energy Well Advanced Signal Interpreter Advanced Terrain Scanner Kinecellerator Experimental Transmission Jammer Layered Heavy Armor Plating Experimental EM Disruption Field Energy Mantle Long-range Tractor Beam Dimensional Node Initializer Advanced Variable Charge Gun Railgun Mini Smartbomb Launcher Thermoblaster Thermoblaster Field Lobotomy Kit Improved Plasma Cutter Power Maul [Rating: 212] Favorites ----------- Power Quantum Reactor Engine Cooled Ion Engine Power Core Fission Core Reactor Quantum Reactor Propulsion Enhanced Armored Heavy Treads Treads Enhanced Armored Heavy Treads Wheel Wheel Utility Advanced Heat Sink Device Advanced Heat Sink Storage High-capacity Storage Unit Processor Advanced Targeting Computer Hackware System Mapper Protection Improved Light Armor Plating Weapon Enhanced Autogun Energy Gun Precision Beam Rifle Energy Cannon Heavy Ion Cannon Ballistic Gun Enhanced Autogun Ballistic Cannon Heavy Mass Driver Launcher Long-range Missile Launcher Special Weapon Field Lobotomy Kit Impact Weapon Power Maul Build | -11 -10 -10 -10 -9 -8 -8 -7 -7 -7 -7 -6 -6 -6 -6 -6 -5 -5 -5 -5 -4 -4 -3 ------- Run | Scr Mat Min Exi Min Mat Sto Fac Low Low Dat Pro Fac Ext Cet Arc Fac Upp Upp War Pro Fac Res Slots Evolved 14 | . . . . . 4 . 2 . . . . 2 . . . 2 . . . . 2 2 Power 2 | . . . . . . . . . . . . 1 . . . . . . . . . 1 Propulsion 4 | . . . . . 1 . 1 . . . . . . . . . . . . . 2 . Utility 8 | . . . . . 3 . 1 . . . . 1 . . . 2 . . . . . 1 Weapon . | . . . . . . . . . . . . . . . . . . . . . . . Parts Attached 434 | 8 8 7 . . 25 39 15 2 8 2 45 45 35 7 5 47 6 . 7 . 41 82 Power 55 | 1 1 1 . . 2 2 . . 1 . 2 8 5 1 . 6 . . . . 9 16 Engine 16 | 1 1 . . . 2 2 . . 1 . 1 5 2 . . 1 . . . . . . Core 14 | . . 1 . . . . . . . . 1 3 3 . . 3 . . . . 3 . Reactor 25 | . . . . . . . . . . . . . . 1 . 2 . . . . 6 16 Propulsion 66 | 2 2 3 . . 5 9 2 . . . 10 6 5 3 1 4 . . . . 1 13 Treads 61 | 1 2 2 . . 4 9 2 . . . 8 6 5 3 1 4 . . . . 1 13 Leg . | . . . . . . . . . . . . . . . . . . . . . . . Wheel 5 | 1 . 1 . . 1 . . . . . 2 . . . . . . . . . . . Hover . | . . . . . . . . . . . . . . . . . . . . . . . Flight . | . . . . . . . . . . . . . . . . . . . . . . . Utility 147 | 2 2 1 . . 7 13 6 . 2 . 15 12 5 1 3 15 6 . 1 . 20 36 Device 94 | 1 1 . . . 4 7 3 . 1 . 7 9 2 . 2 9 5 . 1 . 17 25 Storage 10 | 1 1 1 . . . 1 . . . . 2 . . . . 2 . . . . 1 1 Processor 11 | . . . . . . 1 . . . . . . . . 1 . . . . . 1 8 Hackware 3 | . . . . . . . . . . . 3 . . . . . . . . . . . Protection 29 | . . . . . 3 4 3 . 1 . 3 3 3 1 . 4 1 . . . 1 2 Artifact . | . . . . . . . . . . . . . . . . . . . . . . . Weapon 166 | 3 3 2 . . 11 15 7 2 5 2 18 19 20 2 1 22 . . 6 . 11 17 Energy Gun 30 | 1 1 . . . 4 6 . . . . 1 4 2 1 . 3 . . . . 2 5 Energy Cannon 25 | . 1 1 . . 1 3 2 . . . 6 . . . . 4 . . 2 . 1 4 Ballistic Gun 33 | 2 . . . . 1 4 4 1 3 . 2 . 2 1 1 7 . . . . 1 4 Ballistic Cannon 40 | . 1 . . . 1 . . . . . 4 9 13 . . 2 . . 2 . 7 1 Launcher 19 | . . 1 . . 4 2 . . 2 . . 2 1 . . 4 . . . . . 3 Special Weapon 7 | . . . . . . . . . . 2 2 . 2 . . . . . 1 . . . Impact Weapon 12 | . . . . . . . 1 1 . . 3 4 . . . 2 . . 1 . . . Slashing Weapon . | . . . . . . . . . . . . . . . . . . . . . . . Piercing Weapon . | . . . . . . . . . . . . . . . . . . . . . . . Special Melee Weapon . | . . . . . . . . . . . . . . . . . . . . . . . Unidentified Prototypes 33 | . . . . . . 6 . . . . 3 . 1 4 . 10 . . 3 . 4 2 Corrupted Parts 6 | . . . . . . . . . . . . . . 4 2 . . . . . . . System Corruption 31 | . . . . . . . . . . . . . . 28 3 . . . . . . . Parts Lost 80 | . . 1 . . 2 2 . . 4 . 17 10 . . . 6 . . . . 4 34 Power 14 | . . . . . . . . . 1 . 1 2 . . . . . . . . 2 8 Propulsion 16 | . . 1 . . . . . . . . 8 2 . . . . . . . . . 5 Utility 34 | . . . . . 1 2 . . 2 . 6 3 . . . 5 . . . . 1 14 Weapon 16 | . . . . . 1 . . . 1 . 2 3 . . . 1 . . . . 1 7 Highest Loss Streak 10 | . . 1 . . 1 1 . . 3 . 10 4 . . . 5 . . . . 2 8 To Critical Strikes 2 | . . . . . . . . . . . 1 1 . . . . . . . . . . Average Slot Usage (%) 81 | . 100 100 100 100 90 99 100 100 98 87 81 90 96 87 86 86 67 76 45 41 72 74 Engine 3 | . 14 9 . . 7 9 7 7 6 7 5 5 9 1 . . . . . . . . Core 1 | . . 4 14 14 1 . . . . . 1 1 1 6 6 2 . . . . . . Reactor 5 | . . . . . . . . . . . . . . 4 6 7 11 11 11 11 9 13 Treads 18 | . 14 14 14 14 25 26 30 30 30 30 20 22 25 14 13 10 11 11 11 11 15 17 Wheel 1 | . 14 13 14 14 1 . . . . . 1 1 . . . . . . . . . . Device 16 | . 14 14 14 14 22 15 12 15 10 15 11 9 13 13 12 18 25 29 7 5 29 22 Storage 6 | . 14 14 14 14 9 9 7 7 7 7 8 6 6 6 6 5 5 5 5 5 5 4 Processor 4 | . . . . . . 5 7 7 7 7 7 6 6 6 6 5 5 5 . . . 5 Hackware 3 | . . . . . . . . . . . 4 13 13 13 13 10 . . . . . . Protection 5 | . . . . . 4 14 17 15 18 15 3 7 6 6 6 8 . 5 . . 4 2 Energy Gun 2 | . 1 14 14 14 14 7 . . . . 3 3 . 4 6 . . . . . . . Energy Cannon 1 | . 1 13 14 14 1 . . . . . 7 . . . . . . . . . . 1 Ballistic Gun 3 | . 20 . . . 1 10 14 14 14 . . . . 6 6 8 . . . . . 1 Ballistic Cannon 3 | . 4 . . . . . . . . . 2 8 11 . . . 5 5 4 5 5 2 Naked Turns . | . . . . . . . . . . . . . . . . . . . . . . . Heaviest Build 195 | 12 29 51 51 51 65 68 73 68 68 68 77 94 97 94 94 160 177 177 192 182 182 195 Greatest Support 240 | 10 10 10 10 10 60 60 82 82 82 82 88 104 87 160 160 160 160 160 160 160 240 240 Greatest Overweight (x) 5 | 1 2 5 5 5 5 1 . . . . 5 3 1 1 . 1 1 1 1 1 . 1 Average Overweight (x) . | . 1 4 5 5 1 . . . . . . . . . . . . 1 . 1 . . Largest Inventory Capacity 25 | 8 15 20 20 20 20 20 20 20 20 20 20 20 20 20 20 25 25 25 25 25 25 25 Average Capacity 21 | 7 12 19 20 20 20 20 20 20 20 20 20 20 20 20 20 20 25 25 25 25 25 25 Most Carried 25 | 5 15 16 17 17 20 20 20 20 20 20 20 20 20 20 20 22 25 25 25 25 25 25 Average Carried 20 | 3 9 15 16 17 18 19 19 19 17 19 17 17 18 19 19 19 18 24 24 24 24 23 Final Capacity 25 | 8 15 20 20 20 20 20 20 20 20 20 20 20 20 20 20 25 25 25 25 25 25 25 Final Carried 25 | 4 15 16 17 17 20 20 20 20 18 19 20 17 20 20 19 20 25 25 25 25 25 18 Class Distribution -------------------- 38% | Mutant 19% | Hacker-Mutant 15% | Scavenger-Mutant 10% | Skirmisher 5% | Generator-Skirmisher 4% | Hacker-Skirmisher 3% | Generator-Mutant Dominant Class ---------------- Mutant | -10/Materials Mutant | -10/Mines Mutant | -10/Exiles Mutant | -9/Mines Scavenger-Mutant | -8/Materials Mutant | -8/Storage Mutant | -7/Factory Mutant | -7/Lower Caves Mutant | -7/Lower Caves Mutant | -7/Data Miner Scavenger-Mutant | -6/Proximity Caves Hacker-Mutant | -6/Factory Hacker-Mutant | -6/Extension Hacker-Mutant | -6/Cetus Hacker-Mutant | -6/Archives Hacker-Mutant | -5/Factory Mutant | -5/Upper Caves Mutant | -5/Upper Caves Mutant | -5/Warlord Mutant | -4/Proximity Caves Skirmisher | -4/Factory Generator-Skirmisher | -3/Research Resources | -11 -10 -10 -10 -9 -8 -8 -7 -7 -7 -7 -6 -6 -6 -6 -6 -5 -5 -5 -5 -4 -4 -3 ----------- Run | Scr Mat Min Exi Min Mat Sto Fac Low Low Dat Pro Fac Ext Cet Arc Fac Upp Upp War Pro Fac Res Matter Collected 10667 | 308 350 120 . . 362 671 237 103 241 . 728 694 1022 196 . 1272 150 301 124 330 1439 2019 Remotely 1473 | 125 331 . . . . . . . . . . 364 . . . . 68 . . . 300 285 Salvage Created 13921 | 110 679 304 . . 924 1661 511 289 482 . 989 631 1020 72 . 2040 107 142 58 145 1016 2741 Parts 605 | 3 42 17 . . 46 73 18 17 18 . 34 30 31 5 . 75 1 4 2 8 55 126 Haulers Intercepted 16 | . 2 . . . 1 5 1 . . . . . . . . 4 . . . . 1 2 Recyclers Shooed 15 | . 2 . . . 2 3 . . . . 2 1 1 . . 4 . . . . . . Parts Field Recycled . | . . . . . . . . . . . . . . . . . . . . . . . Retrieved Matter . | . . . . . . . . . . . . . . . . . . . . . . . Parts Self-Destructed 231 | . . . . . . . . 19 18 . 50 . . . . . . 7 120 17 . . Prevented 6 | . . . . . . . . 1 . . . . . . . . . 3 1 1 . . Kills | -11 -10 -10 -10 -9 -8 -8 -7 -7 -7 -7 -6 -6 -6 -6 -6 -5 -5 -5 -5 -4 -4 -3 ------- Run | Scr Mat Min Exi Min Mat Sto Fac Low Low Dat Pro Fac Ext Cet Arc Fac Upp Upp War Pro Fac Res Combat Hostiles Destroyed 248 | . 14 11 . . 17 24 3 7 10 . 15 19 9 2 . 32 2 2 1 10 25 45 Guns 84 | . 10 3 . . 8 16 2 7 9 . 2 7 . 2 . 16 . . . . . 2 Cannons 120 | . 4 6 . . 1 . 1 . . . 12 6 9 . . 3 2 2 1 10 25 38 AOE 35 | . . 2 . . 7 7 . . 1 . . 5 . . . 12 . . . . . 1 Classes Destroyed 19 | 2 5 . . . 3 2 1 . . . . 2 1 . . 1 . 1 . . 1 . Worker 13 | 2 3 . . . 1 . 1 . . . . 2 1 . . 2 . . . . . 1 Builder 6 | . . . . . 2 . . . . . 1 . 1 . . . . . . . . 2 Hauler 16 | . 2 . . . 1 5 1 . . . . . . . . 4 . . . . 1 2 Recycler 17 | 1 1 . . . 3 3 3 . . . 1 . 3 . . 2 . . . . . . Mechanic 1 | . . . . . . . . . . . . . . . . . . . . . 1 . Operator 3 | . 1 . . . . 1 . . . . . . 1 . . . . . . . . . Watcher 9 | . 2 . . . 2 2 1 . . . . . . . . 1 . . . . 1 . Swarmer 42 | . 5 5 . . 3 . . 3 . . . 4 1 1 . 6 . . . 8 4 2 Saboteur 1 | . . . . . . . . . . . . . . . . 1 . . . . . . Grunt 103 | . 9 6 . . 6 16 . 4 8 . 8 7 4 . . 10 2 . . 2 6 15 Brawler 5 | . . . . . . . . . . . . . 1 . . 1 . . . . . 3 Duelist 8 | . . . . . . 1 . . . . 2 1 . . . 2 . . . . . 2 Protector 3 | . . . . . . 1 . . . . 1 . . . . 1 . . . . . . Sentry 24 | . . . . . 6 6 2 . 1 . 2 . 2 . . 2 . . . . 1 2 Specialist 3 | . . . . . . . . . . . . 2 . . . 1 . . . . . . Hunter 14 | . . . . . 2 . . . 1 . 2 . 1 1 . 2 . 2 1 . . 2 Programmer 41 | . . . . . . . 1 . . . . 3 . . . 6 . . . . 13 18 Heavy 4 | . . . . . . . . . . . . 2 . . . . . . . . 1 1 Samaritan 2 | . . . . . . . . . . . . . . . . . . 2 . . . . Thug 1 | . . . . . . . . . . . . . 1 . . . . . . . . . Savage 1 | . . . . . . . . . . . . . . . . . 1 . . . . . Best Kill Streak 13 | 2 4 3 . . 8 10 5 4 4 . 4 8 3 1 . 13 1 2 1 4 4 6 Combat Bots Only 12 | . 3 3 . . 4 8 1 4 4 . 4 8 2 1 . 12 1 2 1 4 4 6 Max Kills in Single Turn 5 | 1 1 1 . . 3 5 1 1 1 . 1 3 1 1 . 4 1 1 1 1 1 1 Gunslinging 1 | . . . . . . . . . . . . 1 . . . . . . . . . . Exploded 4 | . . 1 . . 3 4 . . 1 . . 3 . . . 3 . . . . . 1 Melee . | . . . . . . . . . . . . . . . . . . . . . . . Uniques/NPCs Destroyed . | . . . . . . . . . . . . . . . . . . . . . . . Combat | -11 -10 -10 -10 -9 -8 -8 -7 -7 -7 -7 -6 -6 -6 -6 -6 -5 -5 -5 -5 -4 -4 -3 -------- Run | Scr Mat Min Exi Min Mat Sto Fac Low Low Dat Pro Fac Ext Cet Arc Fac Upp Upp War Pro Fac Res Damage Taken 24717 | . 284 257 . . 711 952 208 282 857 . 2309 2681 376 329 54 2062 65 88 424 1359 1915 9504 Core 2627 | . 53 29 . . 158 138 31 53 101 . 226 272 30 28 . 37 . 8 34 30 30 1369 Absorbed by Shields 3138 | . . . . . 40 41 92 107 92 . 60 364 185 105 16 620 27 84 67 . 652 586 Reduced by Siege Mode 568 | . . . . . . . . . . . . . . . . . . . . . 41 527 Regen/Repaired (Parts) 536 | . . . . . . . . . . . . 536 . . . . . . . . . . Core Remaining (%) 71 | 100 . . . 67 . 46 . . . . 41 . . . 61 . . . . 89 97 . Volleys Fired 964 | 7 66 27 . . 55 84 24 16 34 1 87 51 30 11 9 93 18 11 4 30 94 212 Largest 2 | 2 2 2 . . 2 2 2 2 2 1 2 2 2 2 2 2 1 1 1 1 2 2 Hottest 450 | 40 55 110 . . 160 160 130 50 50 . 155 450 225 115 115 240 75 75 75 75 151 345 Shots Fired 1556 | 14 132 51 . . 99 162 46 32 62 1 151 85 59 23 14 151 19 11 4 30 123 287 Gun 840 | 14 120 24 . . 78 157 38 32 57 . 34 36 1 22 14 128 . . . . 16 69 Cannon 647 | . 12 25 . . 11 2 8 . . . 96 41 55 1 . 16 19 11 4 30 107 209 Launcher 45 | . . 2 . . 10 3 . . 5 . . 8 1 . . 7 . . . . . 9 Special 24 | . . . . . . . . . . 1 21 . 2 . . . . . . . . . Kinetic 968 | 14 132 . . . 6 64 38 32 57 . 53 41 55 12 9 121 19 11 4 30 119 151 Thermal 527 | . . 49 . . 83 95 8 . . . 97 36 2 11 5 15 . . . . 4 122 Explosive 42 | . . 2 . . 10 3 . . 5 . . 8 1 . . 7 . . . . . 6 Electromagnetic 16 | . . . . . . . . . . . . . . . . 8 . . . . . 8 Robot Hit Streak 35 | 9 15 11 . . 23 28 13 5 12 5 24 20 7 5 4 10 3 3 4 6 12 35 Robot Miss Streak 6 | 1 6 3 . . 4 4 3 2 2 . 3 5 2 2 2 3 2 1 . 2 6 6 Penetration Max 1 | . . . . . . . . . . . . . 1 1 . 1 . . 1 . 1 1 Secondary Targets 10 | . 1 . . . 1 . . 1 2 . 1 2 . 1 . 1 . . . . . . Max Gunslinging Chain 1 | . 1 . . . 1 . . 1 1 . 1 1 . 1 . 1 . . . . . . Shots Hit Robots 1062 | 10 69 29 . . 79 120 31 21 46 1 118 62 36 13 10 104 8 6 3 20 81 195 Core Hits 615 | 5 35 19 . . 60 70 14 13 21 . 53 50 26 6 4 79 3 3 1 10 37 106 Critical Kills 18 | . 1 . . . . . . . . . . 3 3 . . 6 . . . . . 5 Critical Parts Destroyed 11 | . 1 . . . . . 1 . . . . . 2 1 . 5 . . . . 1 . Critical Strikes 84 | . 2 . . . 2 5 1 . . . 2 3 12 1 1 13 4 . 1 5 11 21 Burn 7 | . . . . . 2 5 . . . . . . . . . . . . . . . . Meltdown 4 | . . . . . . . . . . . . . . . . . . . . . . 4 Destroy 26 | . 2 . . . . . . . . . . 3 6 1 1 11 . . . . 1 1 Blast 44 | . . . . . . . . . . . . . 6 . . 2 4 . 1 5 10 16 Smash 1 | . . . . . . . 1 . . . . . . . . . . . . . . . Sever 2 | . . . . . . . . . . . 2 . . . . . . . . . . . Melee Attacks 23 | . . . . . . . 4 3 . . 7 8 . . . 1 . . . . . . Impact 23 | . . . . . . . 4 3 . . 7 8 . . . 1 . . . . . . Slashing . | . . . . . . . . . . . . . . . . . . . . . . . Piercing . | . . . . . . . . . . . . . . . . . . . . . . . Sneak Attacks 2 | . . . . . . . 2 . . . . . . . . . . . . . . . Combat Hostiles . | . . . . . . . . . . . . . . . . . . . . . . . Follow-up Attacks . | . . . . . . . . . . . . . . . . . . . . . . . Damage Inflicted 39610 | 119 822 546 . . 2008 2965 805 380 970 . 2711 2848 1435 408 301 5577 572 391 250 1419 4655 10428 Guns 12409 | 119 702 176 . . 1218 2159 464 380 794 . 533 752 . 408 269 2735 . . . . 366 1334 Cannons 19883 | . 120 280 . . 141 22 107 . . . 1965 846 1041 . . 587 560 391 250 1419 4289 7865 Explosions 6661 | . . 88 . . 644 750 . . 176 . . 1250 357 . . 2189 . . . . . 1207 Melee 223 | . . . . . . . 223 . . . . . . . . . . . . . . . Ramming 209 | . . 2 . . 5 34 11 . . . . . 25 . 32 66 12 . . . . 22 Kinetic 22522 | 119 822 . . . 37 774 464 380 794 . 915 846 1041 214 159 2904 560 391 250 1419 4535 5898 Thermal 10835 | . . 456 . . 1322 1407 107 . . . 1796 752 12 194 110 868 . . . . 120 3691 Explosive 5553 | . . 88 . . 644 750 . . 176 . . 1250 357 . . 1627 . . . . . 661 Electromagnetic 268 | . . . . . . . . . . . . . . . . 112 . . . . . 156 Impact 223 | . . . . . . . 223 . . . . . . . . . . . . . . . Slashing . | . . . . . . . . . . . . . . . . . . . . . . . Piercing . | . . . . . . . . . . . . . . . . . . . . . . . Highest Corruption 37 | . . . . . . . 1 1 1 1 4 6 6 34 37 2 2 2 2 . 14 37 Average Corruption 8 | . . . . . . . 1 1 1 1 1 5 6 29 34 1 2 2 2 . 7 18 Corruption Purged 3 | . . . . . . . . . . . 3 . . . . . . . . . . . Corruption Blocked 2 | . . . . . . . . . . . . . . . . . . . 2 . . . Effects 394 | . . . . . . . . 4 4 1 27 39 68 26 20 . 6 21 1 . 76 101 Message Errors 84 | . . . . . . . . . . 1 6 10 16 4 2 . 2 5 . . 18 20 Matter Fused 93 | . . . . . . . . 2 3 . 9 12 21 4 5 . 2 7 . . 14 14 Heat Flow Errors 49 | . . . . . . . . 1 . . 3 3 6 5 3 . . 3 . . 9 16 Energy Discharges 50 | . . . . . . . . . . . 2 3 4 6 3 . . 1 . . 15 16 Parts Rejected 2 | . . . . . . . . . . . . . . . . . . . . . 1 1 Data Loss (minor) 56 | . . . . . . . . 1 1 . 4 6 10 4 4 . 1 4 . . 7 14 Data Loss (major) 18 | . . . . . . . . . . . 2 1 3 1 . . . . 1 . 4 6 Misfires 15 | . . . . . . . . . . . . 1 4 1 1 . 1 . . . 5 2 Alerts 15 | . . . . . . . . . . . 1 2 3 1 2 . . 1 . . . 5 Misdirections 3 | . . . . . . . . . . . . . . . . . . . . . 1 2 Weapon Failures 9 | . . . . . . . . . . . . 1 1 . . . . . . . 2 5 Overload Shots 14 | . . . . . . . . . . . . 6 1 . . 1 . . . . . 6 Overflow Damage 1396 | . . 5 . . 30 . 121 . . . 34 28 2 . . 264 50 90 . 244 308 220 Projectiles 958 | . . 5 . . . . . . . . 34 6 . . . 48 50 90 . 244 308 173 Explosions 308 | . . . . . 30 . . . . . . 22 2 . . 207 . . . . . 47 Melee 130 | . . . . . . . 121 . . . . . . . . 9 . . . . . . Knockbacks 135 | . . . . . . . 1 . . . 18 17 9 . 1 3 3 1 1 8 27 46 Impact 4 | . . . . . . . 1 . . . . . 1 . 1 1 . . . . . . Kinetic 114 | . . . . . . . . . . . 12 15 8 . . 2 3 1 1 6 24 42 Secondary 17 | . . . . . . . . . . . 6 2 . . . . . . . 2 3 4 Self-Inflicted Damage 283 | . . . . . 20 132 . . . . . . 55 . . . . . . . . 76 Shots 6 | . . . . . 1 3 . . . . . . 1 . . . . . . . . 1 Rammed 22 | . . 1 . . 1 5 2 . . . . . 2 . 2 5 2 . . . . 2 Targets Rammed 23 | . . 1 . . 1 5 2 . . . . . 3 . 2 5 2 . . . . 2 Kicked . | . . . . . . . . . . . . . . . . . . . . . . . Crushed 1 | . . . . . . . . . . . . . 1 . . . . . . . . . Highest Temperature 806 | . 6 96 . . 241 132 175 203 221 . 312 783 266 237 149 132 6 235 71 236 325 806 Average Temperature 97 | . 4 35 . . 61 32 29 36 90 . 67 117 54 63 41 32 2 64 36 94 102 180 Received Heat Transfer 3932 | . 75 117 . . 222 366 40 120 376 . 633 372 127 . . 250 30 . 87 36 127 954 Effects 54 | . . . . . . . . . . . . 11 1 . . . . . . 1 3 38 Shutdowns 15 | . . . . . . . . . . . . 2 . . . . . . . . 1 12 Energy Bleed 8 | . . . . . . . . . . . . 1 1 . . . . . . 1 . 5 Interference 3 | . . . . . . . . . . . . 2 . . . . . . . . 1 . Matter Decay 2 | . . . . . . . . . . . . . . . . . . . . . . 2 Short Circuit 4 | . . . . . . . . . . . . . . . . . . . . . . 4 Damage (minor) 6 | . . . . . . . . . . . . . . . . . . . . . 1 5 Damage (major) 12 | . . . . . . . . . . . . 6 . . . . . . . . . 6 Damage (core) 4 | . . . . . . . . . . . . . . . . . . . . . . 4 Siege Activations 16 | . . . . . . . . . . . . . . . . . . . . . 7 9 Total Turns 564 | . . . . . . . . . . . . . . . . . . . . . 334 230 Longest Duration 122 | . . . . . . . . . . . . . . . . . . . . . 122 36 Robots Corrupted 1 | . . . . . . . . . . . . . . . . 1 . . . . . . Combat Hostiles 1 | . . . . . . . . . . . . . . . . 1 . . . . . . Parts Fried 4 | . . . . . . . 3 . . . . . 1 . . . . . . . . . Impact Corruptions 8 | . . . . . . . 5 . . . . . . . . 1 . . . 1 1 . Robots Melted 8 | . . . . . 1 1 . . . . 1 1 . . . . . . . . . 4 Combat Hostiles 8 | . . . . . 1 1 . . . . 1 1 . . . . . . . . . 4 Parts Melted 37 | . . 3 . . 6 8 . . . . 7 2 1 . . . . . . . . 10 Heat Transferred 16962 | . . 1110 . . 3249 3455 148 . . . 3007 1014 37 203 139 757 . . . . 148 3695 Parts Sabotaged 3 | . . . . . . . . . . . . . . . . . . . . . . 3 Parts Stolen . | . . . . . . . . . . . . . . . . . . . . . . . Parts Stripped . | . . . . . . . . . . . . . . . . . . . . . . . Power Chain Reactions . | . . . . . . . . . . . . . . . . . . . . . . . Missiles Intercepted . | . . . . . . . . . . . . . . . . . . . . . . . Alert | -11 -10 -10 -10 -9 -8 -8 -7 -7 -7 -7 -6 -6 -6 -6 -6 -5 -5 -5 -5 -4 -4 -3 ------- Run | Scr Mat Min Exi Min Mat Sto Fac Low Low Dat Pro Fac Ext Cet Arc Fac Upp Upp War Pro Fac Res Peak Influence 1809 | 15 267 351 . 22 314 427 230 . . . . 442 854 804 439 1809 . . . . 424 1270 Initial 477 | . 9 53 . . . 128 93 . . . . 98 135 477 250 83 . . . . 56 208 Average 323 | 5 166 209 . 1 189 267 80 . . . . 253 247 594 403 737 . . . . 160 436 Maximum Alert Level 5 | . 1 1 . . 1 2 1 . . . . 2 3 3 2 5 . . . . 2 4 Low Security (%) 44 | 100 65 40 . 100 51 19 84 . . . . 29 55 . . 52 . . . . 61 29 Level 1 33 | . 34 59 . . 48 70 15 . . . . 64 31 . 20 3 . . . . 35 26 Level 2 11 | . . . . . . 9 . . . . . 6 9 97 79 1 . . . . 3 20 Level 3 4 | . . . . . . . . . . . . . 3 2 . . . . . . . 18 Level 4 3 | . . . . . . . . . . . . . . . . 23 . . . . . 4 Level 5 2 | . . . . . . . . . . . . . . . . 17 . . . . . . High Security . | . . . . . . . . . . . . . . . . 1 . . . . . . Max Security . | . . . . . . . . . . . . . . . . . . . . . . . Squads Dispatched 69 | . 3 . . . 3 8 3 . . . . 12 2 . . 13 . . . . 7 18 Investigation 3 | . 1 . . . . 1 . . . . . . 1 . . . . . . . . . Extermination 23 | . . . . . . . 1 . . . . 3 . . . 3 . . . . 6 10 Reinforcement 20 | . 2 . . . 1 2 . . . . . 6 1 . . 6 . . . . 1 1 Assault 11 | . . . . . . 2 1 . . . . . . . . 4 . . . . . 4 Garrison 12 | . . . . . 2 3 1 . . . . 3 . . . . . . . . . 3 Intercept . | . . . . . . . . . . . . . . . . . . . . . . . Searches Triggered . | . . . . . . . . . . . . . . . . . . . . . . . Construction Impeded 2 | . . . . . . . . . . . . 2 . . . . . . . . . . Haulers Reinforced 2 | . . . . . . . . . . . . 1 . . . 1 . . . . . . Active Scanning Responses . | . . . . . . . . . . . . . . . . . . . . . . . Cargo Convoy Interrupts 2 | . . . . . . . . . . . . . . . . 1 . . . . 1 . Stealth | -11 -10 -10 -10 -9 -8 -8 -7 -7 -7 -7 -6 -6 -6 -6 -6 -5 -5 -5 -5 -4 -4 -3 --------- Run | Scr Mat Min Exi Min Mat Sto Fac Low Low Dat Pro Fac Ext Cet Arc Fac Upp Upp War Pro Fac Res Distress Signals 19 | . 1 . . . 3 5 . . . . 1 1 1 1 . 2 . . . . . 4 Communications Jammed 33 | . . . . . . . . . . . . . . . . 21 . . . . 7 5 Distress Signals 27 | . . . . . . . . . . . . . . . . 21 . . . . 4 2 Times Spotted 461 | . 24 11 . . 22 35 9 7 9 . 25 18 37 16 12 59 2 2 18 14 45 96 Peak Tracking Total 13 | . 3 3 . . 5 8 4 4 4 . 5 8 8 5 2 13 1 1 11 5 5 7 Tactical Retreats 19 | . . 1 . . . . . . . . . . . . . 1 . . . . 12 5 Traps | -11 -10 -10 -10 -9 -8 -8 -7 -7 -7 -7 -6 -6 -6 -6 -6 -5 -5 -5 -5 -4 -4 -3 ------- Run | Scr Mat Min Exi Min Mat Sto Fac Low Low Dat Pro Fac Ext Cet Arc Fac Upp Upp War Pro Fac Res Traps Triggered 11 | . 1 . . . . 2 . . . . 2 . 3 . . 1 . . . . 2 . Indirectly . | . . . . . . . . . . . . . . . . . . . . . . . Trap Hack Attempts . | . . . . . . . . . . . . . . . . . . . . . . . Triggered . | . . . . . . . . . . . . . . . . . . . . . . . Disarmed . | . . . . . . . . . . . . . . . . . . . . . . . Reprogrammed . | . . . . . . . . . . . . . . . . . . . . . . . Reused . | . . . . . . . . . . . . . . . . . . . . . . . Traps Extracted . | . . . . . . . . . . . . . . . . . . . . . . . Installed . | . . . . . . . . . . . . . . . . . . . . . . . Triggered 22 | . . . . . . . . . . . . . . . . . . 2 17 . 3 . Machines | -11 -10 -10 -10 -9 -8 -8 -7 -7 -7 -7 -6 -6 -6 -6 -6 -5 -5 -5 -5 -4 -4 -3 ---------- Run | Scr Mat Min Exi Min Mat Sto Fac Low Low Dat Pro Fac Ext Cet Arc Fac Upp Upp War Pro Fac Res Machines Disabled 43 | . . . . . 1 1 1 . . . 3 5 7 4 2 12 . 1 . . 2 4 Max in Single Turn 8 | . . . . . 1 1 1 . . . 1 1 1 1 1 8 . 1 . . 1 1 Garrison Access 4 | . . . . . . . 1 . . . . . . . . 1 . . . . 1 1 Machines Sabotaged . | . . . . . . . . . . . . . . . . . . . . . . . Garrisons Compromised 1 | . . . . . . . . . . . . . . . . . . . . . 1 . Overloaded Fab Kills . | . . . . . . . . . . . . . . . . . . . . . . . Hacking | -11 -10 -10 -10 -9 -8 -8 -7 -7 -7 -7 -6 -6 -6 -6 -6 -5 -5 -5 -5 -4 -4 -3 --------- Run | Scr Mat Min Exi Min Mat Sto Fac Low Low Dat Pro Fac Ext Cet Arc Fac Upp Upp War Pro Fac Res Machines Accessed 51 | . 2 . 2 . 1 4 2 . 1 3 2 3 10 3 1 2 . 2 5 . 4 4 Terminals 27 | . 1 . . . . 3 1 . 1 . 1 1 10 3 . 1 . 1 . . 2 2 Fabricators 1 | . . . . . . . . . . . 1 . . . . . . . . . . . Repair Stations 4 | . 1 . . . . . . . . . . 1 . . . . . . . . 1 1 Recycling Units 2 | . . . . . . 1 . . . . . 1 . . . . . . . . . . Scanalyzers 1 | . . . . . 1 . . . . . . . . . . . . . . . . . Garrison Access 4 | . . . . . . . 1 . . . . . . . . 1 . . . . 1 1 Total Hacks 145 | . 4 . 3 . 1 5 3 . 2 23 3 10 21 6 25 9 . 2 11 . 10 7 Successful 114 | . 1 . 3 . 1 4 1 . 2 23 3 9 12 6 25 4 . 2 11 . 4 3 Failed 31 | . 3 . . . . 1 2 . . . . 1 9 . . 5 . . . . 6 4 Catastrophic 4 | . . . . . . 1 . . . . . . . . . 1 . . . . . 2 Database Lockouts . | . . . . . . . . . . . . . . . . . . . . . . . Manual 15 | . 2 . 1 . . 1 1 . . . . . . 1 . . . . . . 5 4 Terminals 53 | . 2 . . . . 4 1 . 2 . 1 1 21 6 . 4 . 1 . . 6 4 Fabricators 2 | . . . . . . . . . . . 2 . . . . . . . . . . . Repair Stations 12 | . 2 . . . . . . . . . . 6 . . . . . . . . 2 2 Recycling Units 4 | . . . . . . 1 . . . . . 3 . . . . . . . . . . Scanalyzers 1 | . . . . . 1 . . . . . . . . . . . . . . . . . Garrison Access 10 | . . . . . . . 2 . . . . . . . . 5 . . . . 2 1 Terminal Hacks 97 | . 1 . 3 . . 3 1 . 2 23 1 1 12 6 25 2 . 2 11 . 3 1 Record 54 | . . . 2 . . . . . 2 6 . . 2 5 25 . . 2 10 . . . Part Schematic 11 | . . . . . . . . . . 10 . . 1 . . . . . . . . . Robot Schematic 4 | . . . . . . . . . . 4 . . . . . . . . . . . . Robot Analysis 1 | . 1 . . . . . . . . . . . . . . . . . . . . . Prototype ID Bank 3 | . . . . . . . . . . 3 . . . . . . . . . . . . Open Door 16 | . . . . . . 3 . . . . 1 1 9 1 . . . . 1 . . . Branch Access Points 2 | . . . . . . . 1 . . . . . . . . 1 . . . . . . Alert Level 3 | . . . . . . . . . . . . . . . . . . . . . 2 1 Unreport Threat 1 | . . . . . . . . . . . . . . . . . . . . . 1 . Recall Assault 1 | . . . . . . . . . . . . . . . . 1 . . . . . . EX-Prototype ID Bank 1 | . . . 1 . . . . . . . . . . . . . . . . . . . Fabricator Hacks 2 | . . . . . . . . . . . 2 . . . . . . . . . . . Load Schematic 1 | . . . . . . . . . . . 1 . . . . . . . . . . . Build 1 | . . . . . . . . . . . 1 . . . . . . . . . . . Repair Station Hacks 6 | . . . . . . . . . . . . 5 . . . . . . . . . 1 Scan Component 4 | . . . . . . . . . . . . 3 . . . . . . . . . 1 Repair 2 | . . . . . . . . . . . . 2 . . . . . . . . . . Recycling Unit Hacks 3 | . . . . . . . . . . . . 3 . . . . . . . . . . Report Inventory 2 | . . . . . . . . . . . . 2 . . . . . . . . . . Retrieve Components 1 | . . . . . . . . . . . . 1 . . . . . . . . . . Scanalyzer 1 | . . . . . 1 . . . . . . . . . . . . . . . . . Insert Component 1 | . . . . . 1 . . . . . . . . . . . . . . . . . Garrison Access Hacks 4 | . . . . . . . . . . . . . . . . 2 . . . . 1 1 Seal Access 3 | . . . . . . . . . . . . . . . . 1 . . . . 1 1 Coupler Status 1 | . . . . . . . . . . . . . . . . 1 . . . . . . Unauthorized Hacks 1 | . . . . . . 1 . . . . . . . . . . . . . . . . Terminals . | . . . . . . . . . . . . . . . . . . . . . . . Fabricators . | . . . . . . . . . . . . . . . . . . . . . . . Repair Stations . | . . . . . . . . . . . . . . . . . . . . . . . Recycling Units 1 | . . . . . . 1 . . . . . . . . . . . . . . . . Reject 1 | . . . . . . 1 . . . . . . . . . . . . . . . . Scanalyzers . | . . . . . . . . . . . . . . . . . . . . . . . Garrison Access . | . . . . . . . . . . . . . . . . . . . . . . . Data Cores Recovered . | . . . . . . . . . . . . . . . . . . . . . . . Used . | . . . . . . . . . . . . . . . . . . . . . . . Hacking Detections 21 | . 2 . . . 1 1 1 . 1 . 1 2 3 . . 1 . 1 . . 4 3 Full Trace Events 3 | . 1 . . . . 1 . . . . 1 . . . . . . . . . . . Feedback Events . | . . . . . . . . . . . . . . . . . . . . . . . Feedback Blocked . | . . . . . . . . . . . . . . . . . . . . . . . Robot Schematics Acquired 4 | . . . . . . . . . . 4 . . . . . . . . . . . . Robots Built . | . . . . . . . . . . . . . . . . . . . . . . . Authchips . | . . . . . . . . . . . . . . . . . . . . . . . Time . | . . . . . . . . . . . . . . . . . . . . . . . Total Robot Build Rating . | . . . . . . . . . . . . . . . . . . . . . . . Part Schematics Acquired 11 | . . . . . . . . . . 10 . . 1 . . . . . . . . . Parts Built 2 | . . . . . . . . . . . 2 . . . . . . . . . . . Authchips . | . . . . . . . . . . . . . . . . . . . . . . . Time 53 | . . . . . . . . . . . 53 . . . . . . . . . . . Total Part Build Rating 12 | . . . . . . . . . . . 12 . . . . . . . . . . . Parts Repaired 2 | . . . . . . . . . . . . 2 . . . . . . . . . . Time 50 | . . . . . . . . . . . . 50 . . . . . . . . . . Parts Recycled . | . . . . . . . . . . . . . . . . . . . . . . . Recycled Matter . | . . . . . . . . . . . . . . . . . . . . . . . Retrieved Matter . | . . . . . . . . . . . . . . . . . . . . . . . Retrieved Components 3 | . . . . . . . . . . . . 3 . . . . . . . . . . Parts Scanalyzed . | . . . . . . . . . . . . . . . . . . . . . . . Part Schematics Acquired . | . . . . . . . . . . . . . . . . . . . . . . . Parts Damaged . | . . . . . . . . . . . . . . . . . . . . . . . Bothacking | -11 -10 -10 -10 -9 -8 -8 -7 -7 -7 -7 -6 -6 -6 -6 -6 -5 -5 -5 -5 -4 -4 -3 ------------ Run | Scr Mat Min Exi Min Mat Sto Fac Low Low Dat Pro Fac Ext Cet Arc Fac Upp Upp War Pro Fac Res Used RIF Installer . | . . . . . . . . . . . . . . . . . . . . . . . Robots Hacked . | . . . . . . . . . . . . . . . . . . . . . . . Non-combat . | . . . . . . . . . . . . . . . . . . . . . . . Combat . | . . . . . . . . . . . . . . . . . . . . . . . Robot Hacks Applied . | . . . . . . . . . . . . . . . . . . . . . . . Relay Couplers Released 1 | . . . . . . . 1 . . . . . . . . . . . . . . . Machine Destruction 1 | . . . . . . . 1 . . . . . . . . . . . . . . . Fabnet Peak Effective % . | . . . . . . . . . . . . . . . . . . . . . . . Robots Rewired 26 | . . . . . . . . . . . 10 . 13 . . . . . 3 . . . Allies Hacked . | . . . . . . . . . . . . . . . . . . . . . . . Hacks Repelled . | . . . . . . . . . . . . . . . . . . . . . . . Allies | -11 -10 -10 -10 -9 -8 -8 -7 -7 -7 -7 -6 -6 -6 -6 -6 -5 -5 -5 -5 -4 -4 -3 -------- Run | Scr Mat Min Exi Min Mat Sto Fac Low Low Dat Pro Fac Ext Cet Arc Fac Upp Upp War Pro Fac Res Total Allies 60 | . . . . 2 . 12 . . . 1 11 . 26 5 . . . . 3 . . . Largest Group 17 | . . . . 2 . 10 . . . 1 9 6 17 13 8 7 . . 3 . . . Highest-Rated Group 594 | . . . . 41 . 173 . . . 59 228 159 594 590 541 520 . . 174 . . . Highest-Rated Ally 159 | . . . . 31 . 31 . . . 59 85 41 159 153 96 96 . . 68 . . . Total Orders 21 | . . . . . . 9 . . . . 2 . . . . . . . 1 2 . 7 STAY 2 | . . . . . . 1 . . . . 1 . . . . . . . . . . . ROAM 5 | . . . . . . 5 . . . . . . . . . . . . . . . . FOLLOW 1 | . . . . . . . . . . . 1 . . . . . . . . . . . GUARD 3 | . . . . . . 3 . . . . . . . . . . . . . . . . RETURN 10 | . . . . . . . . . . . . . . . . . . . 1 2 . 7 Ally Attacks 599 | . . . . 10 . 79 . . . . 29 40 177 88 18 115 . . 1 7 . 35 Total Damage 20573 | . . . . 168 . 1184 . . . . 1268 777 4560 2269 735 4324 . . 50 924 . 4314 Kills 118 | . . . . 1 . 8 . . . . 8 8 28 12 4 25 . . . 3 . 21 Allies Corrupted . | . . . . . . . . . . . . . . . . . . . . . . . Allies Melted 6 | . . . . . . 2 . . . . . . 1 . . . . . 3 . . . Field Lobotomies 3 | . . . . . . . . . . 1 1 . 1 . . . . . . . . . Intel | -11 -10 -10 -10 -9 -8 -8 -7 -7 -7 -7 -6 -6 -6 -6 -6 -5 -5 -5 -5 -4 -4 -3 ------- Run | Scr Mat Min Exi Min Mat Sto Fac Low Low Dat Pro Fac Ext Cet Arc Fac Upp Upp War Pro Fac Res Robot Analysis Total 1 | . 1 . . . . . . . . . . . . . . . . . . . . . Derelict Logs Recovered 8 | . . . . . . . . 2 3 . 2 . . . . . . 1 . . . . Drone Launches 26 | . . . . . . 16 . . . . . . . . . . . . 1 2 . 7 Drone Recoveries 10 | . . . . . . . . . . . . . . . . . . . 1 2 . 7 Exploration | -11 -10 -10 -10 -9 -8 -8 -7 -7 -7 -7 -6 -6 -6 -6 -6 -5 -5 -5 -5 -4 -4 -3 ------------- Run | Scr Mat Min Exi Min Mat Sto Fac Low Low Dat Pro Fac Ext Cet Arc Fac Upp Upp War Pro Fac Res Turns Passed 31274 | 138 994 336 581 150 1130 2017 1086 623 766 167 3356 1934 2124 561 431 2460 546 1631 2018 1056 3247 3922 Spaces Moved 13599 | 119 677 162 375 92 421 615 585 360 429 101 1268 573 873 250 243 1214 285 661 793 400 1393 1710 Core 44 | 44 . . . . . . . . . . . . . . . . . . . . . . Treads 11741 | . . . . . 356 615 585 360 429 101 1032 441 873 250 243 1214 285 661 793 400 1393 1710 Legs . | . . . . . . . . . . . . . . . . . . . . . . . Wheels 1814 | 75 677 162 375 92 65 . . . . . 236 132 . . . . . . . . . . Hover . | . . . . . . . . . . . . . . . . . . . . . . . Flight . | . . . . . . . . . . . . . . . . . . . . . . . Fastest Speed 50 | 50 95 110 155 155 155 163 158 158 158 158 120 120 162 160 160 160 160 240 160 240 160 145 Average Speed 176 | 83 105 141 155 155 207 235 160 158 158 158 173 175 202 169 160 160 167 240 239 240 160 156 Slowest Speed 320 | 100 110 155 155 155 240 243 162 158 158 158 320 250 250 242 160 240 240 240 240 240 160 228 Overloaded Moves . | . . . . . . . . . . . . . . . . . . . . . . . Propulsion Burnouts . | . . . . . . . . . . . . . . . . . . . . . . . Robots Hopped . | . . . . . . . . . . . . . . . . . . . . . . . Cave-ins Triggered . | . . . . . . . . . . . . . . . . . . . . . . . Exploration Rate (%) 52 | 4 80 45 67 29 37 79 11 62 48 72 82 12 87 78 96 31 40 73 69 54 23 27 Regions Visited 22 Branch Regions 15 Pre-discovered Areas 4 | . . . 1 . . . . . 1 1 . . . . . . . . 1 . . . Known Exits Taken 5 | . . . . . . . 1 . . . . 1 . . 1 1 . . . . 1 . Unknown Exits Taken 17 | 1 1 1 1 1 1 1 . 1 1 1 1 . 1 1 . . 1 1 1 1 . . Scrap Searched 15 | . . 1 . . . . . 2 3 . 4 . . . . . . 3 . 2 . . Spaces Dug 91 | . . . . . 14 . . 3 14 . 3 9 . . . 10 3 . . . 18 17 Terrain Destroyed 579 | . . 21 . . 81 25 . 3 35 . 5 90 22 . 3 74 12 5 1 14 70 118 Melee 15 | . . . . . . . . 3 . . 3 8 . . . 1 . . . . . . Projectile 246 | . . . . . . . . . . . 2 7 7 . 3 44 12 5 1 14 70 81 AOE 318 | . . 21 . . 81 25 . . 35 . . 75 15 . . 29 . . . . . 37 Terrain Rammed . | . . . . . . . . . . . . . . . . . . . . . . . Walls Destroyed . | . . . . . . . . . . . . . . . . . . . . . . . Machines Disabled . | . . . . . . . . . . . . . . . . . . . . . . . Actions | -11 -10 -10 -10 -9 -8 -8 -7 -7 -7 -7 -6 -6 -6 -6 -6 -5 -5 -5 -5 -4 -4 -3 --------- Run | Scr Mat Min Exi Min Mat Sto Fac Low Low Dat Pro Fac Ext Cet Arc Fac Upp Upp War Pro Fac Res Total 19280 | 145 836 214 375 99 571 1043 687 389 476 108 2245 1394 1166 366 272 1577 326 691 911 453 2284 2652 Wait 3439 | . 72 11 . 8 28 235 43 7 2 2 702 690 111 87 9 125 8 16 3 18 707 555 Move 13577 | 118 676 161 374 91 420 614 584 359 428 100 1267 572 872 249 242 1213 284 660 792 399 1392 1710 Hop . | . . . . . . . . . . . . . . . . . . . . . . . Pick Up 276 | 11 12 4 1 . 23 23 8 1 3 . 33 14 17 2 2 35 6 2 9 3 16 51 Fast Attach 96 | 1 . . . . 1 13 . . . . 4 4 4 7 . 21 . . 4 . 18 19 Attach 168 | 7 . 1 . . 7 3 2 . 4 2 26 18 6 . 2 10 6 . 3 . 16 55 Detach 36 | . . . . . . . . . . 3 7 3 3 . . 4 2 . . . 5 9 Swap 170 | . 8 6 . . 17 23 13 2 4 . 15 23 25 . 3 16 . . . . 7 8 Drop 263 | 1 2 3 . . 19 36 7 1 1 . 15 11 19 10 3 53 . 2 17 3 29 31 Fire 964 | 7 66 27 . . 55 84 24 16 34 1 87 51 30 11 9 93 18 11 4 30 94 212 Melee 23 | . . . . . . . 4 3 . . 7 8 . . . 1 . . . . . . Ram . | . . . . . . . . . . . . . . . . . . . . . . . Kick . | . . . . . . . . . . . . . . . . . . . . . . . Crush 23 | . . 1 . . 1 5 2 . . . . . 3 . 2 5 2 . . . . 2 Escape Stasis 4 | . . . . . . . . . . . . . 4 . . . . . . . . . Rewire 234 | . . . . . . . . . . . 82 . 72 . . 1 . . 79 . . . Trap . | . . . . . . . . . . . . . . . . . . . . . . . Miscellaneous 7 | . . . . . . 7 . . . . . . . . . . . . . . . . Route ------- -11/Scrapyard -10/Materials (discovered 4 exits: [*Mat x2] / [*Min x2]) -10/Mines -10/Exiles -9/Mines -8/Materials (discovered 2 exits: *Fac / *Sto) -8/Storage -7/Factory (discovered 2 exits: *Low x2) -7/Lower Caves -7/Lower Caves -7/Data Miner -6/Proximity Caves -6/Factory (discovered 3 exits: Fac / *Ext x2) -6/Extension (discovered 3 exits: *Fac x2 / *Cet) -6/Cetus -6/Archives (discovered 3 exits: *Fac / *Hub x2) -5/Factory (discovered 3 exits: *Fac / *Upp x2) -5/Upper Caves -5/Upper Caves (discovered 2 exits: *Fac / *War) -5/Warlord -4/Proximity Caves -4/Factory (discovered 2 exits: *Res x2) -3/Research (discovered 2 exits: Arm / *Tes) History --------- Turn | Location | Event 2 | -11/Scrapyard | Met Revision 17 4 | -11/Scrapyard | Discovered new exit (range 16) 139 | -11/Scrapyard | Entered Materials 242 | -10/Materials | Discovered new exit (range 14) 310 | -10/Materials | Build established: Mutant 471 | -10/Materials | Discovered new exit (range 4) 503 | -10/Materials | Discovered new exit (range 15) 797 | -10/Materials | Discovered new exit (range 15) 1133 | -10/Materials | Entered Mines 1208 | -10/Mines | Received a Rocket Launcher from a helpful Derelict 1458 | -10/Mines | Deemed a non-threat by the Exiles lab entrance 1460 | -10/Mines | Discovered new exit (range 5) 1469 | -10/Mines | Entered Exiles 1510 | -10/Exiles | Met 8R-AWN 1536 | -10/Exiles | Met EX-HEX 1598 | -10/Exiles | Met EX-DEC 1645 | -10/Exiles | Learned location of Zion (-6) 1755 | -10/Exiles | Met EX-BIN 1784 | -10/Exiles | Aligned with FarCom system 1786 | -10/Exiles | Given EX-Vault access code 1828 | -10/Exiles | Opened EX-Vault 1880 | -10/Exiles | Found Field Lobotomy Kit 1931 | -10/Exiles | Warned to stay clear of 0b10 Research branches 2033 | -10/Exiles | Discovered new exit (range 11) 2050 | -10/Exiles | Left Exiles lab with Field Lobotomy Kit 2050 | -10/Exiles | Entered Mines 2075 | -9/Mines | Met a Derelict bent on vengeance 2178 | -9/Mines | Discovered new exit (range 8) 2200 | -9/Mines | Entered Materials 2200 | -8/Materials | Evolved 4 slots: Propulsion x1, Utility x3 2731 | -8/Materials | Discovered new exit (range 14) 3036 | -8/Materials | Build established: Scavenger-Mutant 3122 | -8/Materials | Discovered new exit (range 5) 3223 | -8/Materials | Garrison activated, responded to threat 3330 | -8/Materials | Entered Storage 3451 | -8/Storage | Met a pair of Derelict thieves 3570 | -8/Storage | Destroyed 8 combat bots 4036 | -8/Storage | Core integrity fell below 50% 4437 | -8/Storage | Build established: Mutant 4813 | -8/Storage | Assisted by bots powering up and referring to "LRC-V3" 4824 | -8/Storage | Garrison activated, responded to threat 5066 | -8/Storage | Discovered new exit (range 6) 5347 | -8/Storage | Entered Factory 5347 | -7/Factory | Evolved 2 slots: Propulsion x1, Utility x1 5649 | -7/Factory | Identified exit to Lower Caves 6433 | -7/Factory | Entered Lower Caves 6549 | -7/Lower Caves | Encountered a Warlord checkpoint 6845 | -7/Lower Caves | Learned Factory terminal intel 7025 | -7/Lower Caves | Discovered new exit (range 16) 7056 | -7/Lower Caves | Entered another Lower Caves area 7138 | -7/Lower Caves | Lost 3 parts (1p1u1w) 7548 | -7/Lower Caves | Attracted the attention of an 0b10 checkpoint 7566 | -7/Lower Caves | Learned location of 1 exit from Factory 7603 | -7/Lower Caves | Learned location of 1 exit from Factory 7796 | -7/Lower Caves | Discovered new exit (range 10) 7822 | -7/Lower Caves | Entered Data Miner 7822 | -7/Data Miner | Discovered new exit (range 6) 7854 | -7/Data Miner | Met Data Miner 7891 | -7/Data Miner | Learned location of Section 7 (-2) 7891 | -7/Data Miner | Acquired the access code to Warlord's prototype stash 7925 | -7/Data Miner | Received God Mode back door access code from Data Miner 7943 | -7/Data Miner | Assimilated Data Miner with FLK Orb 7989 | -7/Data Miner | Entered Proximity Caves 7989 | -6/Proximity Caves | Accompanied by 1 ally (Data Miner) 8073 | -6/Proximity Caves | Lost 10 parts (1p3n4u2w) 8092 | -6/Proximity Caves | Learned Factory garrison access intel 8219 | -6/Proximity Caves | Attracted the attention of an 0b10 checkpoint 8263 | -6/Proximity Caves | Found Prototype Hackware 8267 | -6/Proximity Caves | Found Prototype Hackware 8270 | -6/Proximity Caves | Found Prototype Hackware 8318 | -6/Proximity Caves | Learned Factory terminal intel 8356 | -6/Proximity Caves | Build established: Scavenger-Mutant 8480 | -6/Proximity Caves | Spotted B-75 Beast 9809 | -6/Proximity Caves | Spotted B-75 Beast 9810 | -6/Proximity Caves | Entered a huge 0b10 base via the front door 9810 | -6/Proximity Caves | Assimilated B-75 Beast with FLK Orb 10076 | -6/Proximity Caves | Build established: Derelict-Mutant 10386 | -6/Proximity Caves | Identified System Mapper 10387 | -6/Proximity Caves | Identified Deep Network Scanner 10388 | -6/Proximity Caves | Identified Quantum Router 10442 | -6/Proximity Caves | Fabricated Arm. Medium Treads (x2) 10530 | -6/Proximity Caves | Core integrity fell below 50% 10708 | -6/Proximity Caves | Discovered new exit (range 13) 10799 | -6/Proximity Caves | Build established: Hacker-Mutant 11345 | -6/Proximity Caves | Entered Factory 11345 | -6/Factory | Accompanied by 6 allies 11345 | -6/Factory | Evolved 2 slots: Power x1, Utility x1 11346 | -6/Factory | Identified exit to Extension 11347 | -6/Factory | Identified exit to Factory 11348 | -6/Factory | Loaded intel: 28 terminal locations 11349 | -6/Factory | Loaded intel: 4 garrison access locations 11530 | -6/Factory | Garrison activated, responded to threat 11990 | -6/Factory | Destroyed 8 combat bots 12053 | -6/Factory | Lost 4 parts (1p1n1u1w) 12100 | -6/Factory | Repaired Arm. Medium Treads 12124 | -6/Factory | Repaired Rnf. Deuterium Engine 12542 | -6/Factory | Build established: Hacker-Skirmisher 13071 | -6/Factory | Build established: Hacker-Mutant 13279 | -6/Factory | Entered Extension 13451 | -6/Extension | Rescued a captive Derelict 13452 | -6/Extension | Rescued a captive Derelict 13495 | -6/Extension | Rescued A7 13522 | -6/Extension | Rescued a captive Derelict 13523 | -6/Extension | Rescued a captive Derelict 13583 | -6/Extension | Rescued a captive Derelict 13807 | -6/Extension | Rescued a captive Derelict 13824 | -6/Extension | Rescued a captive Derelict 13876 | -6/Extension | Rescued a captive Derelict 13877 | -6/Extension | Rescued a captive Derelict 14288 | -6/Extension | Build established: Hacker-Skirmisher 14359 | -6/Extension | Spotted B-75 Beast 14362 | -6/Extension | Assimilated B-75 Beast with FLK Orb 14379 | -6/Extension | Spotted B-75 Beast 14402 | -6/Extension | Allies destroyed B-75 Beast 14478 | -6/Extension | Discovered exit to Factory (range 3) 14645 | -6/Extension | Build established: Hacker-Mutant 14900 | -6/Extension | Rescued a captive Derelict 15199 | -6/Extension | Rescued a captive Derelict 15302 | -6/Extension | Discovered exit to Factory (range 10) 15304 | -6/Extension | Discovered new exit (range 6) 15311 | -6/Extension | Disrupted transfer network 15403 | -6/Extension | Entered Cetus 15403 | -6/Cetus | Accompanied by 13 allies (A7) 15408 | -6/Cetus | Acquired a Cetus Manufacturing Module code from A7 15434 | -6/Cetus | Spotted Cetus Guard 15435 | -6/Cetus | Spotted Cetus Guard 15435 | -6/Cetus | Spotted Cetus Guard 15438 | -6/Cetus | Spotted Cetus Guard 15448 | -6/Cetus | Allies destroyed Cetus Guard 15456 | -6/Cetus | Allies destroyed Cetus Guard 15457 | -6/Cetus | Allies destroyed Cetus Guard 15460 | -6/Cetus | Extracted ID and sensor layout for unrecognized location from A7's data core 15462 | -6/Cetus | Allies destroyed Cetus Guard 15476 | -6/Cetus | System corruption reached 10% 15508 | -6/Cetus | System corruption reached 30% 15664 | -6/Cetus | Started Cetus Manufacturing Module 15689 | -6/Cetus | Manufactured an Enhanced Grunt 15714 | -6/Cetus | Manufactured an Enhanced Grunt 15739 | -6/Cetus | Manufactured an Enhanced Grunt 15764 | -6/Cetus | Manufactured an Enhanced Grunt 15789 | -6/Cetus | Manufactured an Enhanced Grunt 15936 | -6/Cetus | Discovered new exit (range 16) 15964 | -6/Cetus | Entered Archives 15964 | -6/Archives | Accompanied by 8 allies 16036 | -6/Archives | Unable to access archive contents 16052 | -6/Archives | Unable to access archive contents 16068 | -6/Archives | Unable to access archive contents 16071 | -6/Archives | Discovered new exit (range 16) 16084 | -6/Archives | Unable to access archive contents 16092 | -6/Archives | Discovered exit to Factory (range 16) 16166 | -6/Archives | Discovered new exit (range 14) 16251 | -6/Archives | Identified exit to Hub_04(d) 16395 | -6/Archives | Entered Factory 16395 | -5/Factory | Accompanied by 7 allies 16395 | -5/Factory | Evolved 2 slots: Utility x2 16396 | -5/Factory | Loaded intel: 25 terminal locations 16507 | -5/Factory | Discovered new exit (range 8) 16802 | -5/Factory | Build established: Scavenger-Mutant 17218 | -5/Factory | Build established: Hacker-Mutant 17496 | -5/Factory | Found Prototype Launcher 17496 | -5/Factory | Identified Mni. Smartbomb Launcher 17506 | -5/Factory | Found Mni. Smartbomb Launcher 17508 | -5/Factory | Found Mni. Smartbomb Launcher 17516 | -5/Factory | Found Mni. Smartbomb Launcher 17691 | -5/Factory | Found Prototype Device 17691 | -5/Factory | Identified Exp. Thermal Shield 17788 | -5/Factory | Cargo convoy interrupted 17828 | -5/Factory | Destroyed 12 combat bots 17883 | -5/Factory | Found Prototype Device 17883 | -5/Factory | Identified Exp. EM Disruption Field 17887 | -5/Factory | Found Prototype Device 17887 | -5/Factory | Identified Exp. Transmission Jammer 18195 | -5/Factory | First assault squad dispatched 18536 | -5/Factory | Identified exit to Upper Caves 18814 | -5/Factory | High security lockdown imminent 18855 | -5/Factory | Entered Upper Caves 18884 | -5/Upper Caves | Lost 5 parts (5u) 18884 | -5/Upper Caves | Spotted B-75 Beast 19144 | -5/Upper Caves | Build established: Mutant 19268 | -5/Upper Caves | Discovered new exit (range 12) 19401 | -5/Upper Caves | Entered another Upper Caves area 20045 | -5/Upper Caves | Discovered new exit (range 13) 20394 | -5/Upper Caves | Encountered a Warlord checkpoint 20528 | -5/Upper Caves | Learned location of 1 exit from Factory 20537 | -5/Upper Caves | Found Alien Artifact 20998 | -5/Upper Caves | Discovered new exit (range 10) 21032 | -5/Upper Caves | Entered Warlord 21122 | -5/Warlord | System corruption cleaned by Quarantine Array 21255 | -5/Warlord | Found Prototype Device 21255 | -5/Warlord | Identified Wardrone Bay 21763 | -5/Warlord | Learned location of Armory (-3) 21763 | -5/Warlord | Learned Research trap positions 21763 | -5/Warlord | Learned Testing trap positions 21765 | -5/Warlord | Learned 4 Research zone layouts 21950 | -5/Warlord | Received a Watcher feed algorithm from an ecstatic Tinkerer 22133 | -5/Warlord | Visited the Vortex Lab 22133 | -5/Warlord | Warlord's base attacked by MAIN.C 22176 | -5/Warlord | Found Prototype Energy Cannon 22176 | -5/Warlord | Identified Vortex Driver 22182 | -5/Warlord | Found Prototype Energy Cannon 22182 | -5/Warlord | Identified Vortex Cannon 22483 | -5/Warlord | Warlord forces counterattacked 22565 | -5/Warlord | Met Warlord 22808 | -5/Warlord | Warlord base infiltrated, sounded retreat 22960 | -5/Warlord | P-80 Master assimilated allied Slayer 6a 22963 | -5/Warlord | Spotted B-86 Titan 22963 | -5/Warlord | Spotted B-75 Beast 22966 | -5/Warlord | Spotted Executioner 23024 | -5/Warlord | Discovered new exit (range 13) 23033 | -5/Warlord | Spotted Striker 23050 | -5/Warlord | Entered Proximity Caves 23408 | -4/Proximity Caves | Spotted B-86 Titan 23439 | -4/Proximity Caves | Allies destroyed B-86 Titan 24058 | -4/Proximity Caves | Discovered new exit (range 13) 24106 | -4/Proximity Caves | Entered Factory 24106 | -4/Factory | Evolved 2 slots: Propulsion x2 24107 | -4/Factory | Identified exit to Research 24242 | -4/Factory | Found Prototype Processor 24243 | -4/Factory | Identified Exp. Signal Interpreter 24406 | -4/Factory | Build established: Skirmisher 24925 | -4/Factory | Cargo convoy interrupted 25962 | -4/Factory | System corruption reached 10% 27219 | -4/Factory | Discovered exit to Research (range 15) 27353 | -4/Factory | Entered Research 27353 | -3/Research | Evolved 2 slots: Power x1, Utility x1 27354 | -3/Research | Identified exit to Armory 27355 | -3/Research | Loaded intel: 77 trap records 27675 | -3/Research | Build established: Generator-Skirmisher 27809 | -3/Research | Found Unknown Device 27809 | -3/Research | Identified Antimissile System 28867 | -3/Research | System corruption reached 10% 28955 | -3/Research | Found Unknown Device 28955 | -3/Research | Identified Quantum Capacitor 29245 | -3/Research | Lost 6 parts (2p3u1w) 29616 | -3/Research | Lost 4 parts (1p1n1u1w) 29645 | -3/Research | First assault squad dispatched 29660 | -3/Research | Build established: Scavenger-Mutant 30188 | -3/Research | System corruption reached 30% 30197 | -3/Research | Garrison activated, responded to threat 30218 | -3/Research | Lost 8 parts (1p7u) 30369 | -3/Research | Core integrity fell below 50% 30402 | -3/Research | Lost 6 parts (2p2n2w) 30513 | -3/Research | Found Unknown Device 30514 | -3/Research | Identified Quantum Capacitor 30694 | -3/Research | Build established: Generator-Mutant 31210 | -3/Research | Discovered new exit (range 13) 31232 | -3/Research | Identified exit to Testing 31274 | -3/Research | Core integrity fell below 20% 31276 | -3/Research | Core destroyed Last Messages --------------- 31261_ Power failure, Lgt. Quantum Reactor shutdown. 31261_ Slug penetrates A-15 Conveyor. 31263_ Power failure, Particle Reactor shutdown. 31268_ Overheating: Matter decay (-48). 31269_ Biometal Medium Treads broken. 31269_ Overheating: Short circuit. 31270_ Overheating: Matter decay (-34). 31270_ A-15 Conveyor destroyed. 31270_ Slug penetrates Wall. 31271_ Power failure, Lgt. Quantum Reactor shutdown. 31271_ Overheating: Enh. Armored Medium Treads damaged (-127). 31271_ Overheating: Lrn. Phase Cannon damaged (-7). 31273_ Power failure, Particle Reactor shutdown. 31273_ Power failure, Lgt. Quantum Reactor shutdown. 31274_ Overheating: Core damaged (-260). 31274_ System corrupted: Heat flow error (+262). 31275_ Overheating: Biometal Medium Treads damaged (-2). 31276_ Overheating: Core damaged (-195). [Achievement: 20k Club] [Achievement: 30k Club] Map ----- +----------------------------------------------------+ | | | | | | | | | | | | | ?????????????????????????????????????????????????? | | ?????????????????????????????????????????????????? | | ?????????????????????????????????????????????????? | | ?????????????????????????????????????????????????? | | ?????????????????????????????????????????????????? | | ?????????????????????? ????????????????????????? | | ?????????????????????? ????????????????????????? | | ?????? ???????????? ????????????????????????? | | ?????? ##########;+##??????????????????????? | | ?????# #??????????????????????? | | ?????+ #??????????????????????? | | ?????# #??????????????????????? | | ?????#! = #######+##=!!#??????????????????????? | | ???????? ?????# ##!u!#??????????????????????? | | ??????????????# ##!!!#??????????????????????? | | ??????????????# ## ! #??????????????????????? | | ??????????????# ! ## #??????????????????????? | | ??????????????# ## #??????????????????????? | | ??????????????# ## ##?????????????????????? | | ??????????????# # @ ##### #???????????? | | ?????? ???????# # ^^ #???????????? | | ?????? ???????# # > ^ ???????? | | ?????? ???????# # ^!^! ##??????????? | | ?????? ??????# # # ^ !!! #???????????? | | ??????? ??????##+########### !! #???????????? | | ??????? ???????# #??????????? # ??????????? | | ??????? ####???# #??????????? # ?????????? | | ############???# #???????????? ! #???????????? | | *%[%[=%##### #????????????########???????????? | | [ =[[*!+ #???????????????????????????????? | | !!%=%!|#######???????????????????????????????? | | """"=[%#?????????????????????????????????????? | | % """==!#?????????????????????????????????????? | | """"%%#?????????????????????????????????????? | | % ""=[%!#?????????????????????????????????????? | | % *%[!!#?????????????????????????????????????? | | !=[ [=%[##????????????????????????????????????? | | ! =!! [ ##????????????????????????????????????? | | =!! ##????????????????????????????????????? | | !!! #?????????????????????????????????????? | | ############?????????????????????????????????????? | | #????????????????????????????????????????????????? | | #????????????????????????????????????????????????? | | ?????????????????????????????????????????????????? | +----------------------------------------------------+ Best States ------------- Heat Dissipation 141 Energy Generation 63 Energy Capacity 1100 Matter Stores 300 Matter Capacity 450 Sight Range 20 Robot Scan Range 15 Terrain Scan Range 20 Terrain Scan Density 10 Jamming Range 22 Corruption Containment 24 Armor Coverage 1200 Resistance: TH 10 Resistance: EM 75 Point Defense Rating 240 Evasion (%) 50 Targeting Accuracy 8 Melee Accuracy 8 Target Analysis 12 Recoil Reduction 6 Matter Filtering 30 Energy Filtering 30 Kinecelleration 30 Offensive Hacking 45 Defensive Hacking 25 Item Schematics ----------------- Combat Drone Bay | -7/Data Miner | Free Lgt. Regenerative Plating | -7/Data Miner | Free Biomechanical Wings | -7/Data Miner | Free Gravity Neutralizer | -7/Data Miner | Free Antimatter Cannon | -7/Data Miner | Free Arm. Medium Treads | -7/Data Miner | Free Recoil Nullifier | -7/Data Miner | Free Variable Charge Gun | -7/Data Miner | Free Adv. Field Recycling Unit | -7/Data Miner | Free Imp. Force Field | -7/Data Miner | Free Mass Driver | -6/Extension | Hacked Robot Schematics ------------------ R-10 Processor | -7/Data Miner | Free E-15 Imp | -7/Data Miner | Free B-48 Gladiator | -7/Data Miner | Free S-27 Virus | -7/Data Miner | Free Fabricated ------------ Arm. Medium Treads | x2 | -6/Proximity Caves Alien Tech Used ----------------- None Achievements -------------- 20k Club 30k Club A Powerful Ally? Charge!!! Collateral Damage Explorer Generalissimo Leap Before You Look Prison Break Project G-00 Prolific Hacker Release The Drones! Rockin' Loadout Turtlemind Ultimate Loadout Challenges ------------ None Game ------ Seed ArcSpikedBeamcaster Manual? 0 Play Time 06:40:39 Cumulative 60.7 hours Start 2022.04.16 @ 16:41:30 End 2022.04.17 @ 20:25:14 Sessions 3 Manual Loads 0 Difficulty Rogue Special Mode None Game No. 53 Rogue 53 Adventurer 0 Explorer 0 Win Type - Total 0 Types 0/0/0/0/0/0/0/0/0 Lore% 33 Gallery% 48 Achievement% 40 Wizard Run 0 Options --------- ASCII 0 Keyboard 0 Movement Arrows Keybinds 0 Fullscreen 2 Font 18/SmallcapsGlow Map View 76x50 Tactical HUD 1 Map Filters NONE Filters NONE Steam 1 RUN: 7c9a3102-14f6-47a7-9b49-69fa02ed654b